Cogmind - Beta 16.1 @@@ ROGUE MODE // 2026.04.19 @ 03:07:28 Player: M4-TR4 Result: Self-destructed Performance ------------- Evolutions (3) 1500 Regions Visited (7) 1400 Robots Destroyed (109) 545 Value Destroyed (2863) 2863 Prototype IDs (4) 80 Alien Tech Used (0) 0 Bonus (0) 0 TOTAL SCORE: 6388 Bonus ------- None Cogmind --------- Core Integrity 654/700 Matter 6/300 Energy 150/150 System Corruption 22% Temperature Cool (9) Movement Hovering (66) Location -7/Factory Parts ------- > --- POWER (1) -------- Micro Nuclear Core > --- PROPULSION (5) --- Airjet (fused) Combat Airjet > --- UTILITY (5) ------ Cooling System Transmission Jammer Hacking Suite > --- WEAPON (2) ------- Proton Missile Launcher Chainsword > --- INVENTORY (5) ---- Nuclear Core Airjet Hardened Medium Armor Plating Gauss Cannon Proton Missile Launcher Peak State ------------ > --- POWER ------------ Heavy Ion Engine > --- PROPULSION ------- Airjet Airjet Airjet Airjet Airjet > --- UTILITY ---------- Improved Terrain Scanner Improved Terrain Scan Processor Experimental ECM Suite Reaction Control System Improved Propulsion Shielding > --- WEAPON ----------- Plasma Cannon Enhanced Autogun > --- INVENTORY -------- Combat Airjet Medium Reflective Plating Heavy Ion Cannon Proton Missile Launcher Proton Missile Launcher [Rating: 48] Favorites ----------- Power Heavy Ion Engine Engine Heavy Ion Engine Power Core Light Nuclear Core Propulsion Armored Treads Treads Armored Treads Leg Aluminum Leg Wheel Wheel Hover Unit Airjet Flight Unit Improved Flight Unit Utility Huge Storage Unit Device Cooling System Storage Huge Storage Unit Processor Improved Terrain Scan Processor Hackware Hacking Suite Protection Medium Reflective Plating Weapon Improved Light Cannon Energy Gun Particle Gun Energy Cannon Heavy Ion Cannon Ballistic Gun Light Assault Rifle Ballistic Cannon Improved Light Cannon Launcher Proton Missile Launcher Impact Weapon Heavy Mace Slashing Weapon Chainsword Build | -11 -10 -10 -9 -8 -7 -7 -7 ------- Run | Yrd Mat Min Mat Mat Fac Was Fac Slots Evolved 6 | . . . 2 2 2 . . Power . | . . . . . . . . Propulsion 3 | . . . 1 1 1 . . Utility 3 | . . . 1 1 1 . . Weapon . | . . . . . . . . Parts Attached 80 | 2 11 4 21 24 8 3 7 Power 6 | . 2 1 1 1 . . 1 Engine 4 | . 2 . 1 1 . . . Core 2 | . . 1 . . . . 1 Reactor . | . . . . . . . . Propulsion 32 | 2 2 . 12 10 5 . 1 Treads 14 | 1 2 . 5 6 . . . Leg 4 | . . . 4 . . . . Wheel 3 | 1 . . 2 . . . . Hover 10 | . . . . 4 5 . 1 Flight 1 | . . . 1 . . . . Utility 21 | . 2 1 5 7 2 2 2 Device 9 | . . 1 3 1 1 2 1 Storage 2 | . 2 . . . . . . Processor 1 | . . . . . 1 . . Hackware 1 | . . . . . . . 1 Protection 8 | . . . 2 6 . . . Artifact . | . . . . . . . . Weapon 21 | . 5 2 3 6 1 1 3 Energy Gun 3 | . 1 2 . . . . . Energy Cannon 3 | . . . . 2 . 1 . Ballistic Gun 4 | . 3 . . 1 . . . Ballistic Cannon 5 | . 1 . 2 1 . . 1 Launcher 2 | . . . . 1 . . 1 Special Weapon . | . . . . . . . . Impact Weapon 2 | . . . 1 . 1 . . Slashing Weapon 2 | . . . . 1 . . 1 Piercing Weapon . | . . . . . . . . Special Melee Weapon . | . . . . . . . . Unidentified Prototypes 4 | . . . 1 2 . 1 . Corrupted Parts 1 | . . . . . . 1 . System Corruption 7 | . . . . . . 7 . Parts Lost 22 | . 2 3 5 5 . . 7 Power 2 | . 1 . 1 . . . . Propulsion 7 | . . 2 2 . . . 3 Utility 8 | . . . . 4 . . 4 Weapon 5 | . 1 1 2 1 . . . Highest Loss Streak 3 | . 2 1 2 1 . . 3 To Critical Strikes . | . . . . . . . . Average Backups 18 | 6 12 15 20 24 23 6 4 Power 1 | 1 . 1 2 2 2 . . Propulsion 7 | 4 4 6 8 9 9 1 . Utility 4 | . 1 1 3 7 5 1 1 Weapon 5 | 1 5 6 5 5 6 3 2 Tool/Special . | . . . . . . . . Unused Backups 37 | 4 6 1 7 8 . 9 2 Power 8 | 1 1 . 2 1 . 2 1 Propulsion 8 | . 3 . 2 . . 3 . Utility 11 | 1 1 . 2 4 . 2 1 Weapon 10 | 2 1 1 1 3 . 2 . Tool/Special . | . . . . . . . . Average Slot Usage (%) 95 | . 92 95 93 98 93 100 96 Engine 8 | . 14 2 8 8 7 7 3 Core 2 | . . 11 2 . . . 3 Treads 22 | . 28 15 17 35 10 . . Leg 2 | . . . 11 . . . . Wheel 2 | . . 12 2 . . . . Hover 5 | . . . . . 22 38 36 Device 10 | . . 10 11 9 13 22 20 Storage 10 | . 22 14 11 9 7 . . Protection 8 | . . . 5 16 8 7 7 Energy Gun 2 | . 3 11 2 . . . . Energy Cannon 4 | . . . . 9 12 7 2 Ballistic Gun 3 | . 19 2 . 1 . 6 3 Ballistic Cannon 9 | . 3 14 18 7 . . 2 Peak Build Rating 48 | 7 9 13 25 39 46 48 45 Average Rating 26 | 6 8 12 17 36 42 41 41 On Entrance 22 | 6 7 9 13 21 38 45 42 Avg Prop Armor Cover (%) 10 | . . 11 8 . . . . Naked Turns . | . . . . . . . . Heaviest Build 123 | 14 90 93 100 123 123 104 32 Greatest Support 83 | 20 40 20 60 83 83 45 48 Greatest Overweight (x) 37 | . 2 9 9 3 37 2 . Average Overweight (x) 1 | . . 8 2 1 1 . . Largest Inventory Capacity 25 | 8 25 25 25 25 25 25 5 Average Capacity 21 | 8 16 25 25 25 25 5 5 Most Carried 25 | 8 15 17 25 25 25 25 5 Average Carried 18 | 6 12 15 20 24 23 5 4 Final Capacity 25 | 8 25 25 25 25 25 5 5 Final Carried 25 | 8 15 14 25 23 25 5 5 Class Distribution -------------------- 79% | Mutant 20% | Scavenger-Mutant Dominant Class ---------------- Mutant | -10/Materials Mutant | -10/Mines Scavenger-Mutant | -9/Materials Mutant | -8/Materials Mutant | -7/Factory Mutant | -7/Waste Mutant | -7/Factory Resources | -11 -10 -10 -9 -8 -7 -7 -7 ----------- Run | Yrd Mat Min Mat Mat Fac Was Fac Matter Collected 2317 | 218 259 159 732 698 140 . 111 Remotely . | . . . . . . . . Salvage Created 3168 | 107 523 279 760 1186 156 . 157 Parts 193 | 5 28 19 55 80 . . 6 Haulers Intercepted 6 | . 2 . 3 1 . . . Recyclers Shooed 5 | . . . 1 3 . . 1 Parts Field Recycled . | . . . . . . . . Retrieved Matter . | . . . . . . . . Parts Self-Destructed . | . . . . . . . . Prevented . | . . . . . . . . Parts Restored . | . . . . . . . . Kills | -11 -10 -10 -9 -8 -7 -7 -7 ------- Run | Yrd Mat Min Mat Mat Fac Was Fac Combat Hostiles Destroyed 83 | . 10 12 21 35 1 . 4 Melee 1 | . . . . 1 . . . Guns 24 | . 9 8 4 1 . . 2 Cannons 54 | . 1 4 17 31 1 . . AOE 3 | . . . . 1 . . 2 Classes Destroyed 12 | 2 5 1 3 1 . . . Worker 4 | . . . 2 1 1 . . Builder 7 | . 1 . 5 1 . . . Tunneler 3 | 1 . . 1 1 . . . Hauler 6 | . 2 . 3 1 . . . Recycler 4 | 1 . . 1 1 1 . . Watcher 3 | . 1 . 1 . . . 1 Swarmer 29 | . 3 4 6 12 . . 4 Grunt 40 | . 7 7 10 15 1 . . Duelist 2 | . . . 1 1 . . . Sentry 10 | . . . 4 6 . . . Specialist 1 | . . . . 1 . . . Assembled 1 | . . 1 . . . . . Best Kill Streak 10 | 2 3 3 5 10 1 . 3 Combat Bots Only 10 | . 3 3 3 10 1 . 2 Max Kills in Single Turn 2 | 1 1 1 2 1 1 . 2 Gunslinging . | . . . . . . . . Exploded 1 | . . . . 1 . . 1 Melee 1 | . . . . 1 . . . Uniques/NPCs Destroyed . | . . . . . . . . Combat | -11 -10 -10 -9 -8 -7 -7 -7 -------- Run | Yrd Mat Min Mat Mat Fac Was Fac Hostile Shots Fired 570 | . 66 51 95 246 3 . 109 Missed 184 | . 19 13 29 66 . . 57 Hits 386 | . 47 38 66 180 3 . 52 Melee 4 | . . . 2 2 . . . Projectile 382 | . 47 38 64 178 3 . 52 Critical Strikes 11 | . . . . 11 . . . Damage Taken 4835 | . 602 417 795 2249 44 . 728 Core 522 | . 70 19 123 264 . . 46 Absorbed by Shields . | . . . . . . . . Redirected to Shielding 128 | . . . . . . . 128 Ignored by Resistances 327 | . . . . 307 . . 20 Regen/Repaired (Parts) 111 | . . . . . . . 111 Core Remaining (%) 71 | 100 . 64 69 52 . . . Volleys Fired 310 | 6 49 27 87 97 4 . 40 Largest 2 | 2 2 2 2 2 2 . 2 Hottest 130 | 60 60 98 98 130 130 . 90 Shots Fired 547 | 12 94 49 153 186 8 1 44 Gun 170 | 12 92 22 18 9 . 1 16 Cannon 373 | . 2 27 135 175 8 . 26 Launcher 4 | . . . . 2 . . 2 Special . | . . . . . . . . Kinetic 373 | 6 69 31 135 101 . 1 30 Thermal 153 | . 14 18 18 83 8 . 12 Explosive . | . . . . . . . . Electromagnetic 21 | 6 11 . . 2 . . 2 Robot Hit Streak 19 | 4 12 7 19 17 10 2 6 Robot Miss Streak 8 | 1 3 1 8 3 1 . 3 Penetration Max . | . . . . . . . . Secondary Targets 1 | . 1 . . . . . . Max Gunslinging Chain 1 | . 1 . . . . . . Shots Hit Robots 356 | 8 70 32 95 131 6 1 13 Core Hits 149 | 3 25 16 39 56 2 . 8 Critical Kills . | . . . . . . . . Critical Parts Destroyed 2 | . . . . . 2 . . Critical Strikes 12 | . . 1 4 5 2 . . Burn 2 | . . 1 1 . . . . Blast 8 | . . . 3 5 . . . Smash 2 | . . . . . 2 . . Melee Attacks 14 | . . . 1 4 7 . 2 Impact 8 | . . . 1 . 7 . . Slashing 6 | . . . . 4 . . 2 Piercing . | . . . . . . . . Sneak Attacks 3 | . . . . 1 2 . . Combat Hostiles . | . . . . . . . . Follow-up Attacks . | . . . . . . . . Damage Inflicted 7715 | 100 779 585 2114 3428 259 . 450 Guns 1632 | 100 721 249 200 134 . . 228 Cannons 5437 | . 43 335 1899 3024 109 . 27 Explosions 314 | . . . . 119 . . 195 Melee 254 | . . . . 104 150 . . Ramming 78 | . 15 1 15 47 . . . Kinetic 4685 | 59 526 359 1899 1614 . . 228 Thermal 2229 | . 124 225 200 1544 109 . 27 Explosive . | . . . . . . . . Electromagnetic 469 | 41 114 . . 119 . . 195 Impact 150 | . . . . . 150 . . Slashing 104 | . . . . 104 . . . Piercing . | . . . . . . . . Highest Corruption 22 | . . . . . . 22 22 Average Corruption 21 | . . . . . . 17 22 Corruption Purged . | . . . . . . . . Corruption Blocked . | . . . . . . . . Effects 49 | . . . . . . 10 39 Message Errors 9 | . . . . . . 1 8 Matter Fused 11 | . . . . . . 1 10 Heat Flow Errors 3 | . . . . . . 1 2 Energy Discharges 5 | . . . . . . 1 4 Parts Rejected 2 | . . . . . . 1 1 Parts Fused 1 | . . . . . . . 1 Data Loss (minor) 5 | . . . . . . 1 4 Data Loss (major) 2 | . . . . . . . 2 Misfires 3 | . . . . . . 1 2 Alerts 2 | . . . . . . . 2 Misdirections 4 | . . . . . . 3 1 Weapon Failures 2 | . . . . . . . 2 Overload Shots . | . . . . . . . . Overflow Damage 243 | . . 4 31 28 150 . 30 Projectiles 63 | . . 4 31 28 . . . Explosions 30 | . . . . . . . 30 Melee 150 | . . . . . 150 . . Knockbacks 47 | . . 5 28 13 1 . . Impact 2 | . . . 1 . 1 . . Kinetic 38 | . . 4 23 11 . . . Secondary 7 | . . 1 4 2 . . . Self-Inflicted Damage 11 | . . . . 11 . . . Shots 1 | . . . . 1 . . . Rammed 5 | . 2 1 . 2 . . . Targets Rammed 9 | . 2 1 2 4 . . . Kicked 2 | . . . 2 . . . . Crushed 2 | . . . . 2 . . . Highest Temperature 273 | . 72 130 51 273 17 90 220 Average Temperature 49 | . 24 43 14 68 11 43 46 Received Heat Transfer 2145 | . 279 162 267 1260 27 . 150 Siege Activations . | . . . . . . . . Martial Activations . | . . . . . . . . Shielding Activations . | . . . . . . . . Robots Disrupted . | . . . . . . . . Combat Hostiles . | . . . . . . . . Robots Corrupted 1 | . . . . . 1 . . Combat Hostiles . | . . . . . . . . Parts Fried 5 | . 1 . . . 2 . 2 Impact Corruptions 4 | . . . . . 4 . . Robots Melted 1 | . . . . 1 . . . Combat Hostiles 1 | . . . . 1 . . . Parts Melted 6 | . 1 1 1 3 . . . Heat Transferred 3716 | . 275 592 555 2109 148 . 37 Parts Sabotaged . | . . . . . . . . Parts Stolen . | . . . . . . . . Parts Stripped . | . . . . . . . . Power Chain Reactions . | . . . . . . . . Alert | -11 -10 -10 -9 -8 -7 -7 -7 ------- Run | Yrd Mat Min Mat Mat Fac Was Fac Maximum Alert Level 1 | . . . . 1 . . 1 Low Security (%) 96 | 100 100 100 100 91 100 100 96 Level 1 3 | . . . . 8 . . 3 Level 2 . | . . . . . . . . Level 3 . | . . . . . . . . Level 4 . | . . . . . . . . Level 5 . | . . . . . . . . High Security . | . . . . . . . . Max Security . | . . . . . . . . Peak Influence 328 | 5 79 80 194 328 144 1 214 Initial 144 | . . . 5 72 144 1 . Average 66 | 2 26 22 54 104 40 . 116 Influence Increases 2809 | 10 338 266 671 968 34 . 522 Destroy 0b10 Robot/C 1640 | . 200 220 420 700 20 . 80 Destroy 0b10 Robot/NC 135 | 10 20 . 65 25 10 . 5 Destroy Leader 338 | . 56 30 88 152 . . 12 Successful Hack 40 | . 17 . 5 2 . . 16 Disable Machine 165 | . . 15 15 30 . . 105 Destroy Structure 131 | . . 1 18 29 4 . 79 Partial Spotted 45 | . . . . . . . 45 Lose Combat Pursuer 315 | . 45 . 60 30 . . 180 Influence Decreases 2626 | 10 336 252 516 821 347 5 339 Entered New Map 290 | . . 2 11 99 174 4 . Time Decay 2129 | 10 316 230 458 672 173 1 269 Lost Part 207 | . 20 20 47 50 . . 70 Squads Dispatched 12 | . 2 . 2 5 1 . 2 Investigation 4 | . . . 1 1 1 . 1 Extermination 1 | . . . . . . . 1 Reinforcement 6 | . 2 . 1 3 . . . Assault . | . . . . . . . . Garrison 1 | . . . . 1 . . . Intercept . | . . . . . . . . Searches Triggered . | . . . . . . . . Construction Impeded 1 | . . . . 1 . . . Haulers Reinforced . | . . . . . . . . Active Scanning Responses . | . . . . . . . . Cargo Convoy Interrupts . | . . . . . . . . Stealth | -11 -10 -10 -9 -8 -7 -7 -7 --------- Run | Yrd Mat Min Mat Mat Fac Was Fac Distress Signals 11 | . 1 1 7 1 . . 1 Communications Jammed 2 | . . . . . . . 2 Distress Signals 2 | . . . . . . . 2 Times Spotted 150 | . 21 12 42 47 2 6 20 Peak Tracking Total 8 | . 4 3 5 8 1 6 6 Tactical Retreats 14 | . 3 . 3 2 . 1 5 Traps | -11 -10 -10 -9 -8 -7 -7 -7 ------- Run | Yrd Mat Min Mat Mat Fac Was Fac Traps Triggered 6 | . 2 . . 1 2 . 1 Indirectly . | . . . . . . . . Trap Hack Attempts . | . . . . . . . . Triggered . | . . . . . . . . Disarmed . | . . . . . . . . Reprogrammed . | . . . . . . . . Reused . | . . . . . . . . Traps Extracted . | . . . . . . . . Installed . | . . . . . . . . Triggered . | . . . . . . . . Machines | -11 -10 -10 -9 -8 -7 -7 -7 ---------- Run | Yrd Mat Min Mat Mat Fac Was Fac Machines Disabled 11 | . . 1 1 2 . . 7 Max in Single Turn 3 | . . 1 1 1 . . 3 Garrison Access 2 | . . . . 1 . . 1 Machines Repaired . | . . . . . . . . Machines Dismantled . | . . . . . . . . Machines Sabotaged . | . . . . . . . . Overloaded Fab Kills . | . . . . . . . . Hacking | -11 -10 -10 -9 -8 -7 -7 -7 --------- Run | Yrd Mat Min Mat Mat Fac Was Fac Machines Accessed 10 | . 3 . 2 2 1 . 2 Terminals 4 | . 3 . 1 . . . . Fabricators . | . . . . . . . . Repair Stations 1 | . . . . . . . 1 Recycling Units . | . . . . . . . . Scanalyzers 3 | . . . 1 1 1 . . Garrison Access 2 | . . . . 1 . . 1 Total Hacks 32 | . 9 . 7 7 4 . 5 Successful 17 | . 4 . 5 3 2 . 3 Failed 14 | . 5 . 2 4 1 . 2 Catastrophic 1 | . 1 . . . . . . Database Lockouts 1 | . . . . . 1 . . Manual 11 | . 9 . 2 . . . . Terminals 11 | . 9 . 2 . . . . Fabricators . | . . . . . . . . Repair Stations 3 | . . . . . . . 3 Recycling Units . | . . . . . . . . Scanalyzers 11 | . . . 5 2 4 . . Garrison Access 7 | . . . . 5 . . 2 Terminal Hacks 2 | . 2 . . . . . . Robot Analysis 1 | . 1 . . . . . . Registered Components 1 | . 1 . . . . . . Fabricator Hacks . | . . . . . . . . Repair Station Hacks 2 | . . . . . . . 2 Scan Component 1 | . . . . . . . 1 Repair 1 | . . . . . . . 1 Recycling Unit Hacks . | . . . . . . . . Scanalyzer 8 | . . . 4 2 2 . . Retrieve Study 8 | . . . 4 2 2 . . Garrison Access Hacks 2 | . . . . 1 . . 1 Seal Access 2 | . . . . 1 . . 1 Unauthorized Hacks 3 | . 2 . 1 . . . . Terminals 3 | . 2 . 1 . . . . Botnet 3 | . 2 . 1 . . . . Fabricators . | . . . . . . . . Repair Stations . | . . . . . . . . Recycling Units . | . . . . . . . . Scanalyzers . | . . . . . . . . Garrison Access . | . . . . . . . . Data Cores Recovered . | . . . . . . . . Used . | . . . . . . . . Hacking Detections 9 | . 3 . 2 2 1 . 1 Full Trace Events 2 | . . . 1 . 1 . . Feedback Events . | . . . . . . . . Feedback Blocked . | . . . . . . . . Robot Schematics Acquired . | . . . . . . . . Robots Built . | . . . . . . . . Authchips . | . . . . . . . . Time . | . . . . . . . . Total Robot Build Rating . | . . . . . . . . Part Schematics Acquired . | . . . . . . . . Parts Built . | . . . . . . . . Authchips . | . . . . . . . . Time . | . . . . . . . . Total Part Build Rating . | . . . . . . . . Part Studies Acquired 8 | . . . 4 2 2 . . Parts Repaired 1 | . . . . . . . 1 Time 25 | . . . . . . . 25 Parts Recycled . | . . . . . . . . Recycled Matter . | . . . . . . . . Retrieved Matter . | . . . . . . . . Retrieved Components . | . . . . . . . . Parts Scanalyzed . | . . . . . . . . Part Schematics Acquired . | . . . . . . . . Parts Damaged . | . . . . . . . . Bothacking | -11 -10 -10 -9 -8 -7 -7 -7 ------------ Run | Yrd Mat Min Mat Mat Fac Was Fac Used RIF Installer . | . . . . . . . . Robots Hacked . | . . . . . . . . Non-combat . | . . . . . . . . Combat . | . . . . . . . . Robot Hacks Applied . | . . . . . . . . Relay Couplers Released 2 | . . . . . . . 2 Machine Destruction 2 | . . . . . . . 2 Fabnet Peak Effective % . | . . . . . . . . Robots Rewired . | . . . . . . . . Allies Hacked . | . . . . . . . . Hacks Repelled . | . . . . . . . . Allies | -11 -10 -10 -9 -8 -7 -7 -7 -------- Run | Yrd Mat Min Mat Mat Fac Was Fac Total Allies . | . . . . . . . . Largest Group . | . . . . . . . . Highest-Rated Group . | . . . . . . . . Highest-Rated Ally . | . . . . . . . . Total Orders . | . . . . . . . . Ally Attacks . | . . . . . . . . Total Damage . | . . . . . . . . Kills . | . . . . . . . . Allies Corrupted . | . . . . . . . . Allies Melted . | . . . . . . . . Intel | -11 -10 -10 -9 -8 -7 -7 -7 ------- Run | Yrd Mat Min Mat Mat Fac Was Fac Active Infowar (turns) 1179 | . . . . . 448 166 565 Terrain 1117 | . . . . . 448 166 503 Jamming 62 | . . . . . . . 62 Robot Analysis Total 1 | . 1 . . . . . . Derelict Logs Recovered 1 | . . 1 . . . . . Drone Launches . | . . . . . . . . Drone Recoveries . | . . . . . . . . Exploration | -11 -10 -10 -9 -8 -7 -7 -7 ------------- Run | Yrd Mat Min Mat Mat Fac Was Fac Turns Passed 8005 | 50 1026 848 2008 2615 561 166 731 Spaces Moved 3486 | 22 423 246 622 983 187 249 754 Core 1 | . . . . . 1 . . Treads 1901 | 5 423 19 397 981 76 . . Legs 167 | 17 . . 150 . . . . Wheels 302 | . . 227 75 . . . . Hover 1115 | . . . . 2 110 249 754 Flight . | . . . . . . . . Fastest Speed 44 | 120 160 200 200 207 164 44 44 Average Speed 170 | 129 192 232 260 212 197 44 48 Slowest Speed 1900 | 160 320 480 480 237 1900 164 66 Overloaded Moves . | . . . . . . . . Propulsion Burnouts . | . . . . . . . . Robots Hopped . | . . . . . . . . Potential Cave-ins . | . . . . . . . . Cave-ins Triggered . | . . . . . . . . Exploration Rate (%) 47 | 2 72 57 52 86 4 83 26 Regions Visited 7 Branch Regions 1 Pre-discovered Areas . | . . . . . . . . Known Exits Taken . | . . . . . . . . Unknown Exits Taken 5 | 1 1 1 1 1 . . . Scrap Searched . | . . . . . . . . Spaces Dug 81 | . . . 1 2 5 . 73 Terrain Destroyed 129 | . . 1 9 22 5 . 92 Melee 10 | . . . 1 2 5 . 2 Projectile 40 | . . 1 8 20 . . 11 AOE 79 | . . . . . . . 79 Terrain Rammed . | . . . . . . . . Walls Destroyed . | . . . . . . . . Machines Disabled . | . . . . . . . . Actions | -11 -10 -10 -9 -8 -7 -7 -7 --------- Run | Yrd Mat Min Mat Mat Fac Was Fac Total 4978 | 31 552 474 858 1324 355 305 1079 Wait 897 | . 38 188 72 165 136 37 261 Move 3480 | 21 422 245 621 982 187 248 754 Hop . | . . . . . . . . Pick Up 82 | 2 17 4 26 20 3 5 5 Fast Attach 32 | . 3 . 7 6 7 5 4 Attach 30 | . 3 5 6 10 2 1 3 Detach 2 | . . . 1 . 1 . . Swap 43 | 2 5 2 13 12 4 . 5 Drop 79 | . 13 2 22 24 4 9 5 Fire 310 | 6 49 27 87 97 4 . 40 Melee 14 | . . . 1 4 7 . 2 Ram . | . . . . . . . . Kick 2 | . . . 2 . . . . Crush 7 | . 2 1 . 4 . . . Escape Stasis . | . . . . . . . . Rewire . | . . . . . . . . Trap . | . . . . . . . . Miscellaneous . | . . . . . . . . Route ------- -11/Scrapyard -10/Materials (discovered 4 exits: *Mat x2 / [*Min] / [*Sub]) -10/Mines -9/Materials (discovered 3 exits: *Mat x2 / Sto) -8/Materials (discovered 3 exits: *Fac x3) -7/Factory -7/Waste -7/Factory History --------- Turn | Location | Event 4 | -11/Scrapyard | Discovered new exit (range 3) 51 | -11/Scrapyard | Entered Materials 118 | -10/Materials | Discovered new exit (range 8) 300 | -10/Materials | Build established: Mutant 408 | -10/Materials | Discovered new exit (range 6) 506 | -10/Materials | Discovered new exit (range 6) 938 | -10/Materials | Discovered new exit (range 8) 951 | -10/Materials | Derelicts attacked the area 1077 | -10/Materials | Entered Mines 1133 | -10/Mines | Found a hidden stash of uninstalled traps 1200 | -10/Mines | Excavation squad dispatched 1200 | -10/Mines | A large section of the Mines collapsed 1580 | -10/Mines | Discovered new exit (range 13) 1696 | -10/Mines | A weapon hastily lodged in a ceiling crevice suddenly fell to the ground 1925 | -10/Mines | Entered Materials 1925 | -9/Materials | Evolved 2 slots: Propulsion x1, Utility x1 1926 | -9/Materials | Identified exit to Storage 2133 | -9/Materials | Build established: Scavenger-Mutant 3088 | -9/Materials | Discovered new exit (range 16) 3303 | -9/Materials | Build established: Mutant 3799 | -9/Materials | Build established: Scavenger-Mutant 3922 | -9/Materials | Discovered new exit (range 3) 3933 | -9/Materials | Entered another Materials area 3933 | -8/Materials | Evolved 2 slots: Propulsion x1, Utility x1 4124 | -8/Materials | Destroyed 7 combat bots 4263 | -8/Materials | Build established: Mutant 4516 | -8/Materials | Garrison activated, responded to threat 4902 | -8/Materials | Discovered new exit (range 3) 5284 | -8/Materials | Discovered new exit (range 8) 6459 | -8/Materials | Destroyed 10 combat bots 6537 | -8/Materials | Discovered new exit (range 4) 6548 | -8/Materials | Entered Factory 6548 | -7/Factory | Evolved 2 slots: Propulsion x1, Utility x1 7029 | -7/Factory | Central database locked down 7109 | -7/Factory | Sucked down chute 7109 | -7/Factory | Entered Waste 7124 | -7/Waste | EMP discharged 7126 | -7/Waste | System corruption reached 10% 7148 | -7/Waste | Spotted C-40 Crusher 7156 | -7/Waste | Spotted C-40 Crusher 7157 | -7/Waste | Spotted C-40 Crusher 7158 | -7/Waste | Spotted C-40 Crusher 7219 | -7/Waste | Spotted C-40 Crusher 7224 | -7/Waste | EMP discharged 7235 | -7/Waste | Spotted C-40 Crusher 7248 | -7/Waste | Discovered new exit (range 11) 7270 | -7/Waste | Found Prototype Device 7270 | -7/Waste | Identified Exp. ECM Suite 7275 | -7/Waste | Entered Factory 7672 | -7/Factory | Repaired Cmb. Airjet 7947 | -7/Factory | Lost 3 parts (3u) 8002 | -7/Factory | Lost 3 parts (3n) 8006 | -7/Factory | Self-destructed Last Messages --------------- 07893_ Acquired Hrd. Medium Armor Plating. 07905_ Penetrated by Slug. 07906_ System corrupted: Substantial component data lost. 07910_ U-05 Engineer builds a Wall. 07911_ Imp. Propulsion Shielding destroyed. 07911_ Knocked back. 07913_ Penetrated by Slug. 07913_ Reaction Control System destroyed. 07913_ Knocked back. 07916_ Slug penetrates Wall. 07916_ Med. Reflective Plating destroyed. 07921_ System corrupted: Matter fused (-9). 07928_ K-01 Serf cleans the Fusion Modulator. 07944_ Acquired Transmission Jammer. 07948_ W-25 Informer distress signal jammed. 07950_ System corrupted: Airjet+ fused. 07967_ Airjet+ destroyed. 07969_ SN|=DTAWP8QQIW/K2C3DTUDS3GEW,93MHYV 07969_ Airjet+ destroyed. 07984_ System corrupted: Matter fused (-9). Map ----- +----------------------------------------------------+ | ????????????????????? " " "??# #???????????? | | ????????????????????? " " " # #???????????? | | ????????????????????? " " " + #???????????? | | ????????????????????? " " " # #???????????? | | ????????????????????? " " "??# #???????????? | | ????????????????????? " "????# #???????????? | | ??????????????????????"?"????# #???????????? | | ???????????????????????? ????# #???????????? | | ???????????????????????? ????# ##########??? | | ????????????????????????/#???# #??? | | ???????????????????????? #???# #??? | | ???????????????????????# #??## #??? | | ???????????????????????# #??# #??? | | ???????????????????????#g#??#T #??? | | ???????????????????????# #??## #??? | | ???????????##########??# #???# #??? | | ??????????? #??# #???# #####+####??? | | ????????? """ """ #### #####g #???????????? | | ???????#? """ """ # #???????????? | | ???????# """ """ # #???????????? | | ???????# # +???????????? | | ???????# """ """ + #???????????? | | ???????#? """ """ # #???????????? | | ????????? """ """ # #???????????? | | ??????????? # #???????????? | | ??????????? #####@#+##########???????????? | | ?????????? #?? ?????????????????????? | | ?????????? # ???????????????????? | | ??????????########### === ?????????????????? | | ????????????????????# == #???????????????? | | ????????????????????# == #???????????????? | | ????????????????????# #???????????????? | | ????????????????????# #???????????????? | | ????????????????????# ] #???????????????? | | ????????????????????# #???????????????? | | ????????????????????# #???????????????? | | ????????????????????# #???????????????? | | ????????????????????# #???????????????? | | ????????????????????#############????????????????? | | ?????????????????????????????????????????????????? | | ?????????????????????????????????????????????????? | | ?????????????????????????????????????????????????? | | ?????????????????????????????????????????????????? | | | | | | | | | | | | | | | +----------------------------------------------------+ Best States ------------- Heat Dissipation 56 Energy Generation 15 Energy Capacity 280 Matter Stores 300 Matter Capacity 300 Sight Range 16 Terrain Scan Range 16 Terrain Scan Density 110 Jamming Range 12 Armor Coverage 450 Resistance: KI 20 Resistance: TH 15 Power Shielding 66 Propulsion Shielding 66 Evasion (%) 64 Recoil Reduction 4 Particle Charging 15 Offensive Hacking 10 Item Schematics ----------------- None Robot Schematics ------------------ None Fabricated ------------ Nothing Repaired ---------- Cmb. Airjet | 14% | -7/Factory Studied --------- Imp. Light Cannon | -9/Materials | Hacked Imp. Hover Unit | -9/Materials | Hacked Aluminum Leg | -9/Materials | Hacked Lgt. Treads | -9/Materials | Hacked Arm. Treads | -8/Materials | Hacked Imp. Treads | -8/Materials | Hacked Airjet | -7/Factory | Hacked Proton Missile Launcher | -7/Factory | Hacked Alien Tech Used ----------------- None Achievements -------------- Omniscient Cartographer Challenges ------------ None Game ------ Seed HeartBladeShockpuncher Manual? 0 Play Time 01:27:29 Cumulative 46.9 hours Start 2026.04.18 @ 23:44:56 End 2026.04.19 @ 03:07:28 Sessions 3 Manual Loads 0 Difficulty Rogue Special Mode None Game No. 26 Rogue 17 Adventurer 0 Explorer 9 Win Type - Total 2 Types 2/0/0/0/0/0/0/0/0/0 Lore% 27 Gallery% 34 Achievement% 39 Wizard Run 0 Options --------- Layout 0 ASCII 0 Keyboard 0 Movement Mouse Keybinds 0 Fullscreen 1 Font 18/SmallcapsGlow Map View 76x50 Zoom Use 0% Tactical HUD 1 Map Filters NONE Filters NONE Steam 1 RUN: ec880e85-8e4c-411f-9d3c-54ac1de691de